[Event "Live Chess"]
[Site "Chess.com"]
[Date "2024.06.02"]
[Round "-"]
[White "peteopeteo"]
[Black "alicechristina"]
[Result "0-1"]
[WhiteElo "1556"]
[BlackElo "1904"]
[TimeControl "300"]
[EndTime "16:59:21 PDT"]
[Termination "alicechristina won by resignation"]

1. e4 {[%clk 0:04:59.2]} 1... e5 {[%clk 0:04:58.6]} 2. Nf3 {[%clk 0:04:58.3]}
2... Nf6 {[%clk 0:04:56.8]} 3. Nc3 {[%clk 0:04:57.2]} 3... Nc6 {[%clk
0:04:53.9]} 4. Bc4 {[%clk 0:04:54.4]} 4... Nxe4 {[%clk 0:04:48.7]} 5. Nxe4
{[%clk 0:04:51.2]} 5... d5 {[%clk 0:04:48.1]} 6. Qe2 {[%clk 0:04:36.6]} 6...
dxc4 {[%clk 0:04:25.3]} 7. O-O {[%clk 0:04:24.9]} 7... Bg4 {[%clk 0:04:23.8]} 8.
h3 {[%clk 0:04:23.1]} 8... Bh5 {[%clk 0:04:21.6]} 9. Ng3 {[%clk 0:04:22.3]} 9...
Bg6 {[%clk 0:04:20.2]} 10. Re1 {[%clk 0:04:11.8]} 10... Bd6 {[%clk 0:04:17.9]}
11. Ne4 {[%clk 0:04:02.3]} 11... O-O {[%clk 0:04:14.6]} 12. d3 {[%clk
0:03:53.2]} 12... cxd3 {[%clk 0:04:12.8]} 13. cxd3 {[%clk 0:03:53.1]} 13... Bh5
{[%clk 0:04:09.9]} 14. Ng3 {[%clk 0:03:50.7]} 14... Nd4 {[%clk 0:04:05.9]} 15.
Qe4 {[%clk 0:03:32.8]} 15... Nxf3+ {[%clk 0:04:03.4]} 16. gxf3 {[%clk
0:03:32.7]} 16... Bg6 {[%clk 0:03:57.1]} 17. Qg4 {[%clk 0:03:30.9]} 17... Bc5
{[%clk 0:03:53.5]} 18. Rxe5 {[%clk 0:03:20.8]} 18... Bd6 {[%clk 0:03:52]} 19.
Re3 {[%clk 0:02:35.5]} 19... Qf6 {[%clk 0:03:33.8]} 20. Ne4 {[%clk 0:02:29.3]}
20... Bxe4 {[%clk 0:03:32.4]} 21. fxe4 {[%clk 0:02:24.1]} 21... Bc5 {[%clk
0:03:30.6]} 22. Rf3 {[%clk 0:02:19.2]} 22... Qb6 {[%clk 0:03:24.8]} 23. Be3
{[%clk 0:02:02.1]} 23... Bxe3 {[%clk 0:03:10.6]} 24. Rxe3 {[%clk 0:02:00.4]}
24... Qxb2 {[%clk 0:03:08.1]} 25. Rf1 {[%clk 0:01:59.4]} 25... Qxa2 {[%clk
0:03:05.5]} 26. f4 {[%clk 0:01:51.2]} 26... Rad8 {[%clk 0:03:01.9]} 27. f5
{[%clk 0:01:49.3]} 27... Qd2 {[%clk 0:02:57.7]} 28. Rff3 {[%clk 0:01:29.3]}
28... a5 {[%clk 0:02:47.2]} 29. Rg3 {[%clk 0:01:26.2]} 29... g6 {[%clk
0:02:45.3]} 30. h4 {[%clk 0:01:24.4]} 30... h5 {[%clk 0:02:26.3]} 31. Qxh5
{[%clk 0:01:20.6]} 31... Qxe3+ {[%clk 0:02:25.3]} 32. Kg2 {[%clk 0:01:13.3]}
32... Qxg3+ {[%clk 0:02:23.4]} 33. Kxg3 {[%clk 0:01:11.3]} 33... gxh5 {[%clk
0:02:23]} 0-1

[Event "Live Chess"]
[Site "Chess.com"]
[Date "2024.06.02"]
[Round "-"]
[White "mychess51"]
[Black "stevochess11"]
[Result "1-0"]
[WhiteElo "1803"]
[BlackElo "1696"]
[TimeControl "300"]
[EndTime "16:59:26 PDT"]
[Termination "mychess51 won by resignation"]

1. d4 {[%clk 0:04:56.9]} 1... Nf6 {[%clk 0:04:58.7]} 2. Nf3 {[%clk 0:04:56.8]}
2... g6 {[%clk 0:04:56.2]} 3. g3 {[%clk 0:04:56]} 3... Bg7 {[%clk 0:04:54.4]} 4.
Bg2 {[%clk 0:04:55.9]} 4... O-O {[%clk 0:04:53.8]} 5. O-O {[%clk 0:04:55.8]}
5... d5 {[%clk 0:04:51.1]} 6. c3 {[%clk 0:04:55.7]} 6... c6 {[%clk 0:04:45.2]}
7. Re1 {[%clk 0:04:55.6]} 7... Nbd7 {[%clk 0:04:39.7]} 8. Nbd2 {[%clk
0:04:55.5]} 8... b6 {[%clk 0:04:37.6]} 9. e4 {[%clk 0:04:55.4]} 9... dxe4 {[%clk
0:04:36.2]} 10. Nxe4 {[%clk 0:04:55.3]} 10... Bb7 {[%clk 0:04:34.1]} 11. Bg5
{[%clk 0:04:48.2]} 11... c5 {[%clk 0:04:30.1]} 12. Nxf6+ {[%clk 0:04:43.5]}
12... Nxf6 {[%clk 0:04:25]} 13. dxc5 {[%clk 0:04:40.3]} 13... Qxd1 {[%clk
0:04:21.8]} 14. Raxd1 {[%clk 0:04:38.6]} 14... bxc5 {[%clk 0:04:15]} 15. Rxe7
{[%clk 0:04:37.1]} 15... Nd5 {[%clk 0:04:04.1]} 16. Rxb7 {[%clk 0:04:31.8]} 1-0

[Event "Live Chess"]
[Site "Chess.com"]
[Date "2024.06.02"]
[Round "-"]
[White "Sir_Sigmund"]
[Black "NAZRIZ1977"]
[Result "1-0"]
[WhiteElo "1864"]
[BlackElo "2152"]
[TimeControl "300"]
[EndTime "16:59:59 PDT"]
[Termination "Sir_Sigmund won by resignation"]

1. e4 {[%clk 0:04:56.6]} 1... c5 {[%clk 0:04:58.1]} 2. Be2 {[%clk 0:04:55.1]}
2... Nc6 {[%clk 0:04:57]} 3. d3 {[%clk 0:04:54.1]} 3... g6 {[%clk 0:04:56.1]} 4.
c3 {[%clk 0:04:53.2]} 4... Bg7 {[%clk 0:04:54.9]} 5. f4 {[%clk 0:04:52.6]} 5...
d6 {[%clk 0:04:52.2]} 6. Na3 {[%clk 0:04:50.5]} 6... Nf6 {[%clk 0:04:51]} 7. Nf3
{[%clk 0:04:44.4]} 7... Bg4 {[%clk 0:04:49.5]} 8. O-O {[%clk 0:04:43.4]} 8...
O-O {[%clk 0:04:48.5]} 9. Qe1 {[%clk 0:04:38.5]} 9... Rb8 {[%clk 0:04:46.7]} 10.
Qh4 {[%clk 0:04:36.1]} 10... Bxf3 {[%clk 0:04:45.4]} 11. Rxf3 {[%clk 0:04:32.3]}
11... b5 {[%clk 0:04:30]} 12. Nc2 {[%clk 0:04:27.4]} 12... b4 {[%clk 0:04:25.2]}
13. Ne3 {[%clk 0:04:10.2]} 13... bxc3 {[%clk 0:04:18]} 14. bxc3 {[%clk
0:04:08.2]} 14... Qa5 {[%clk 0:04:10.4]} 15. Bd2 {[%clk 0:03:58.7]} 15... Rb2
{[%clk 0:04:07.1]} 16. Nc4 {[%clk 0:03:57.7]} 16... Qb5 {[%clk 0:03:59.9]} 17.
Nxb2 {[%clk 0:03:52.4]} 17... Qxb2 {[%clk 0:03:58.1]} 18. Rd1 {[%clk 0:03:49.7]}
18... Qxa2 {[%clk 0:03:42]} 19. Rh3 {[%clk 0:03:33.2]} 19... Na5 {[%clk
0:03:30.9]} 20. e5 {[%clk 0:03:16.7]} 20... Nh5 {[%clk 0:03:12.5]} 21. Bxh5
{[%clk 0:03:10.7]} 21... gxh5 {[%clk 0:03:12.4]} 22. Qxh5 {[%clk 0:03:03.9]}
22... Rb8 {[%clk 0:03:09.6]} 23. Qxh7+ {[%clk 0:02:54.9]} 23... Kf8 {[%clk
0:03:08.1]} 24. Rg3 {[%clk 0:02:53]} 24... Qc2 {[%clk 0:02:58.6]} 25. Qxg7+
{[%clk 0:02:33.7]} 25... Ke8 {[%clk 0:02:57.6]} 26. Qg8+ {[%clk 0:02:07.8]}
26... Kd7 {[%clk 0:02:56.2]} 27. Qg4+ {[%clk 0:02:06]} 27... Kc7 {[%clk
0:02:52.3]} 28. exd6+ {[%clk 0:02:04.7]} 28... exd6 {[%clk 0:02:51.3]} 29. Re3
{[%clk 0:01:56.2]} 29... Rb2 {[%clk 0:02:34]} 30. Re7+ {[%clk 0:01:43.3]} 30...
Kb6 {[%clk 0:02:32.7]} 31. d4 {[%clk 0:01:28.2]} 31... cxd4 {[%clk 0:02:15.2]}
32. cxd4 {[%clk 0:01:26.2]} 32... Nc6 {[%clk 0:02:09.5]} 33. Rxf7 {[%clk
0:01:00.8]} 33... Nxd4 {[%clk 0:02:01]} 34. Be3 {[%clk 0:00:53]} 34... Rb1
{[%clk 0:01:37.5]} 35. Bxd4+ {[%clk 0:00:50.5]} 35... Ka6 {[%clk 0:01:28.2]} 36.
Rxb1 {[%clk 0:00:40.3]} 36... Qxb1+ {[%clk 0:01:26.8]} 37. Kf2 {[%clk
0:00:39.8]} 37... Qc2+ {[%clk 0:01:26.3]} 38. Qe2+ {[%clk 0:00:38.7]} 1-0

[Event "Live Chess"]
[Site "Chess.com"]
[Date "2024.06.02"]
[Round "-"]
[White "bear856"]
[Black "RockTroll"]
[Result "1-0"]
[WhiteElo "2435"]
[BlackElo "2197"]
[TimeControl "300"]
[EndTime "17:00:07 PDT"]
[Termination "bear856 won by resignation"]

1. d4 {[%clk 0:04:56.6]} 1... Nf6 {[%clk 0:04:58.6]} 2. Nf3 {[%clk 0:04:56]}
2... g6 {[%clk 0:04:57.9]} 3. c4 {[%clk 0:04:54.9]} 3... Bg7 {[%clk 0:04:57.3]}
4. Nc3 {[%clk 0:04:54.1]} 4... d6 {[%clk 0:04:55.3]} 5. e4 {[%clk 0:04:53]} 5...
O-O {[%clk 0:04:54.5]} 6. Be2 {[%clk 0:04:52.5]} 6... e5 {[%clk 0:04:54.1]} 7.
Be3 {[%clk 0:04:50.6]} 7... exd4 {[%clk 0:04:51.5]} 8. Nxd4 {[%clk 0:04:49.1]}
8... Re8 {[%clk 0:04:50.8]} 9. f3 {[%clk 0:04:48.1]} 9... c6 {[%clk 0:04:49.9]}
10. Bf2 {[%clk 0:04:46.9]} 10... d5 {[%clk 0:04:49.1]} 11. exd5 {[%clk 0:04:46]}
11... cxd5 {[%clk 0:04:48.2]} 12. O-O {[%clk 0:04:45.4]} 12... Nc6 {[%clk
0:04:45.9]} 13. c5 {[%clk 0:04:44.2]} 13... Nh5 {[%clk 0:04:44.8]} 14. Qd2
{[%clk 0:04:36.5]} 14... Be5 {[%clk 0:04:41.4]} 15. g3 {[%clk 0:04:35.2]} 15...
Ng7 {[%clk 0:04:39.1]} 16. Rfe1 {[%clk 0:04:25.7]} 16... Bf5 {[%clk 0:04:37.6]}
17. a3 {[%clk 0:04:19.9]} 17... Bxd4 {[%clk 0:04:21.5]} 18. Bxd4 {[%clk
0:04:16.2]} 18... Ne6 {[%clk 0:04:20.9]} 19. Bf2 {[%clk 0:04:14.7]} 19... d4
{[%clk 0:04:19.5]} 20. Nb5 {[%clk 0:04:12.9]} 20... d3 {[%clk 0:04:09.2]} 21.
Bf1 {[%clk 0:04:10.4]} 21... Qd5 {[%clk 0:04:07.3]} 22. b4 {[%clk 0:03:52.2]}
22... Qxf3 {[%clk 0:04:04.7]} 23. Bg2 {[%clk 0:03:50.9]} 23... Qh5 {[%clk
0:03:58.6]} 24. Nd6 {[%clk 0:03:49.4]} 24... Rf8 {[%clk 0:02:51.8]} 25. Qf4
{[%clk 0:03:30.1]} 25... Bh3 {[%clk 0:02:32.3]} 26. Qf3 {[%clk 0:03:16]} 26...
Bxg2 {[%clk 0:02:25]} 27. Qxh5 {[%clk 0:03:11.5]} 27... gxh5 {[%clk 0:02:24.5]}
28. Kxg2 {[%clk 0:03:10.6]} 28... Ned4 {[%clk 0:02:19.6]} 29. Rad1 {[%clk
0:03:05.1]} 29... Nc2 {[%clk 0:02:08.2]} 30. Re4 {[%clk 0:02:56.4]} 30... f5
{[%clk 0:02:03.1]} 31. Rf4 {[%clk 0:02:46.9]} 31... Ne5 {[%clk 0:01:59.4]} 32.
Nxf5 {[%clk 0:02:35.4]} 32... Rad8 {[%clk 0:01:47.8]} 33. Nd6 {[%clk 0:02:27.6]}
33... Rxf4 {[%clk 0:01:42.9]} 34. gxf4 {[%clk 0:02:25.9]} 34... Ng4 {[%clk
0:01:38.3]} 35. Rxd3 {[%clk 0:02:21.9]} 35... b6 {[%clk 0:01:29.2]} 36. h3
{[%clk 0:02:13.2]} 36... Nf6 {[%clk 0:01:09.8]} 37. c6 {[%clk 0:02:06.5]} 1-0

[Event "Live Chess"]
[Site "Chess.com"]
[Date "2024.06.02"]
[Round "-"]
[White "toog"]
[Black "booktrunk"]
[Result "1-0"]
[WhiteElo "2596"]
[BlackElo "1479"]
[TimeControl "300"]
[EndTime "17:00:09 PDT"]
[Termination "toog won by resignation"]

1. Nf3 {[%clk 0:04:56.2]} 1... b6 {[%clk 0:04:57.9]} 2. g3 {[%clk 0:04:53.9]}
2... Bb7 {[%clk 0:04:56.8]} 3. Bg2 {[%clk 0:04:53.8]} 3... e6 {[%clk 0:04:54.6]}
4. O-O {[%clk 0:04:52.7]} 4... Nf6 {[%clk 0:04:51.3]} 5. d3 {[%clk 0:04:49.8]}
5... h6 {[%clk 0:04:49.2]} 6. e4 {[%clk 0:04:49.1]} 6... Be7 {[%clk 0:04:45.8]}
7. Nbd2 {[%clk 0:04:48.1]} 7... O-O {[%clk 0:04:43.6]} 8. b3 {[%clk 0:04:44.8]}
8... a5 {[%clk 0:04:35.5]} 9. a4 {[%clk 0:04:39.6]} 9... d6 {[%clk 0:04:33.5]}
10. Bb2 {[%clk 0:04:39.5]} 10... Nbd7 {[%clk 0:04:32]} 11. Re1 {[%clk
0:04:37.2]} 11... e5 {[%clk 0:04:31.3]} 12. Nh4 {[%clk 0:04:33.8]} 12... Nh7
{[%clk 0:04:28.6]} 13. Nf5 {[%clk 0:04:32.4]} 13... Bf6 {[%clk 0:04:26.2]} 14.
Nc4 {[%clk 0:04:30.4]} 14... Re8 {[%clk 0:04:22.1]} 15. Bc1 {[%clk 0:04:28]}
15... Ndf8 {[%clk 0:04:20.2]} 16. Nce3 {[%clk 0:04:23.8]} 16... Ng6 {[%clk
0:04:18.7]} 17. Ng4 {[%clk 0:04:21.1]} 17... Bg5 {[%clk 0:04:10.6]} 18. h4
{[%clk 0:04:19.1]} 18... Bxc1 {[%clk 0:04:08.5]} 19. Qxc1 {[%clk 0:04:19]} 19...
Bc8 {[%clk 0:04:00.2]} 20. Nge3 {[%clk 0:04:15.7]} 20... Bxf5 {[%clk 0:03:57.2]}
21. Nxf5 {[%clk 0:04:15.6]} 21... Nh8 {[%clk 0:03:50.2]} 22. Ne3 {[%clk
0:04:10.2]} 22... Qe7 {[%clk 0:03:44.5]} 23. Nd5 {[%clk 0:04:08.7]} 23... Qd7
{[%clk 0:03:39.9]} 24. Kh2 {[%clk 0:04:05.2]} 24... Re6 {[%clk 0:03:35]} 25. Bh3
{[%clk 0:04:03.9]} 25... Nf6 {[%clk 0:03:32.7]} 26. Nxf6+ {[%clk 0:04:01.7]}
26... gxf6 {[%clk 0:03:31]} 27. Qxh6 {[%clk 0:03:59.1]} 27... Qe8 {[%clk
0:03:27]} 28. Bxe6 {[%clk 0:03:51.1]} 28... fxe6 {[%clk 0:03:24.2]} 29. Qxf6
{[%clk 0:03:49.7]} 29... Qf7 {[%clk 0:03:23.3]} 30. Qxf7+ {[%clk 0:03:48.8]}
30... Kxf7 {[%clk 0:03:22.2]} 31. f4 {[%clk 0:03:48.3]} 31... exf4 {[%clk
0:03:19.7]} 32. gxf4 {[%clk 0:03:48.2]} 32... Rg8 {[%clk 0:03:18.1]} 33. Rg1
{[%clk 0:03:47.7]} 33... Ng6 {[%clk 0:03:16.1]} 34. f5 {[%clk 0:03:45.2]} 34...
Nxh4 {[%clk 0:03:14.5]} 35. fxe6+ {[%clk 0:03:42.9]} 35... Kf8 {[%clk
0:03:09.6]} 36. Raf1+ {[%clk 0:03:41]} 1-0

[Event "Live Chess"]
[Site "Chess.com"]
[Date "2024.06.02"]
[Round "-"]
[White "NeilDruggan73"]
[Black "Plato_77"]
[Result "1-0"]
[WhiteElo "1741"]
[BlackElo "1299"]
[TimeControl "300"]
[EndTime "17:00:15 PDT"]
[Termination "NeilDruggan73 won by resignation"]

1. d4 {[%clk 0:04:56.4]} 1... Nf6 {[%clk 0:04:58.2]} 2. Bg5 {[%clk 0:04:53.9]}
2... e6 {[%clk 0:04:56.5]} 3. e4 {[%clk 0:04:51.6]} 3... h6 {[%clk 0:04:54.1]}
4. Bxf6 {[%clk 0:04:48.6]} 4... Qxf6 {[%clk 0:04:52.6]} 5. c3 {[%clk 0:04:48.1]}
5... d5 {[%clk 0:04:48.8]} 6. Nd2 {[%clk 0:04:34.9]} 6... c5 {[%clk 0:04:43.2]}
7. Ngf3 {[%clk 0:04:28.7]} 7... cxd4 {[%clk 0:04:35.4]} 8. Nxd4 {[%clk
0:04:13.1]} 8... Nc6 {[%clk 0:04:29.4]} 9. Bb5 {[%clk 0:04:06.6]} 9... Bd7
{[%clk 0:04:25.7]} 10. O-O {[%clk 0:04:03.3]} 10... a6 {[%clk 0:04:23.1]} 11.
Bxc6 {[%clk 0:03:55.9]} 11... bxc6 {[%clk 0:04:23]} 12. exd5 {[%clk 0:03:47.5]}
12... cxd5 {[%clk 0:04:20.9]} 13. N2f3 {[%clk 0:03:38.7]} 13... Bc5 {[%clk
0:04:00.9]} 14. Re1 {[%clk 0:03:37.5]} 14... O-O {[%clk 0:03:58]} 15. Ne5 {[%clk
0:03:36.1]} 15... Bc8 {[%clk 0:03:54.6]} 16. Ndf3 {[%clk 0:03:08.1]} 16... Rd8
{[%clk 0:03:06.9]} 17. b4 {[%clk 0:03:03.9]} 17... Bd6 {[%clk 0:03:00.1]} 18.
Qa4 {[%clk 0:02:59.3]} 18... Bd7 {[%clk 0:02:52.9]} 19. Nxd7 {[%clk 0:02:56.3]}
1-0

[Event "Live Chess"]
[Site "Chess.com"]
[Date "2024.06.02"]
[Round "-"]
[White "CarmelJane"]
[Black "Crowded_House"]
[Result "1-0"]
[WhiteElo "2081"]
[BlackElo "1725"]
[TimeControl "300"]
[EndTime "17:00:27 PDT"]
[Termination "CarmelJane won by checkmate"]

1. Nf3 {[%clk 0:04:57.9]} 1... e6 {[%clk 0:04:59]} 2. g3 {[%clk 0:04:57.8]} 2...
d5 {[%clk 0:04:57.8]} 3. Bg2 {[%clk 0:04:57.7]} 3... Bd6 {[%clk 0:04:52]} 4. c4
{[%clk 0:04:56.7]} 4... c6 {[%clk 0:04:50.3]} 5. cxd5 {[%clk 0:04:55.2]} 5...
exd5 {[%clk 0:04:47.8]} 6. O-O {[%clk 0:04:52.6]} 6... Ne7 {[%clk 0:04:46.5]} 7.
Re1 {[%clk 0:04:49.8]} 7... O-O {[%clk 0:04:44.9]} 8. a3 {[%clk 0:04:45.3]} 8...
Nd7 {[%clk 0:04:42.9]} 9. b4 {[%clk 0:04:44.3]} 9... a6 {[%clk 0:04:41.3]} 10.
Bb2 {[%clk 0:04:43.4]} 10... Ng6 {[%clk 0:04:35.9]} 11. d3 {[%clk 0:04:35.3]}
11... Nf6 {[%clk 0:04:33.4]} 12. Nbd2 {[%clk 0:04:33.5]} 12... Re8 {[%clk
0:04:28.3]} 13. e4 {[%clk 0:04:29.7]} 13... dxe4 {[%clk 0:04:23.8]} 14. dxe4
{[%clk 0:04:29.6]} 14... Bc7 {[%clk 0:04:10.7]} 15. Qc2 {[%clk 0:04:25.9]} 15...
Be5 {[%clk 0:03:52.6]} 16. Nxe5 {[%clk 0:04:18.8]} 16... Nxe5 {[%clk 0:03:51]}
17. f4 {[%clk 0:04:12.5]} 17... Ned7 {[%clk 0:03:39.5]} 18. Rad1 {[%clk
0:04:06.3]} 18... Qb6+ {[%clk 0:03:33.7]} 19. Kh1 {[%clk 0:04:04.1]} 19... Ng4
{[%clk 0:03:26.7]} 20. Re2 {[%clk 0:03:34.7]} 20... Ne3 {[%clk 0:03:19.1]} 21.
Rxe3 {[%clk 0:03:31.1]} 21... Qxe3 {[%clk 0:03:16.3]} 22. Nc4 {[%clk 0:03:30.6]}
22... Qa7 {[%clk 0:03:07.1]} 23. Qc3 {[%clk 0:03:12.8]} 23... f6 {[%clk
0:03:00]} 24. Nd6 {[%clk 0:03:09.4]} 24... Re7 {[%clk 0:02:46.9]} 25. Qc4+
{[%clk 0:03:07.7]} 25... Kf8 {[%clk 0:02:37.8]} 26. e5 {[%clk 0:03:00.3]} 26...
Nb6 {[%clk 0:02:29.1]} 27. Qb3 {[%clk 0:02:57]} 27... fxe5 {[%clk 0:02:23.1]}
28. fxe5 {[%clk 0:02:56.9]} 28... Be6 {[%clk 0:01:59.3]} 29. Rf1+ {[%clk
0:02:39.2]} 29... Kg8 {[%clk 0:01:55.9]} 30. Qf3 {[%clk 0:02:31.8]} 30... Bd5
{[%clk 0:01:33]} 31. Qh5 {[%clk 0:02:18.8]} 31... Bxg2+ {[%clk 0:01:30.2]} 32.
Kxg2 {[%clk 0:02:18.7]} 32... Nd5 {[%clk 0:01:12]} 33. Kh3 {[%clk 0:02:12.6]}
33... Qe3 {[%clk 0:01:04.8]} 34. Nf5 {[%clk 0:01:46.2]} 34... g6 {[%clk
0:00:34.7]} 35. Nh6+ {[%clk 0:01:37.7]} 35... Kg7 {[%clk 0:00:32.5]} 36. e6+
{[%clk 0:01:36.8]} 36... Nf6 {[%clk 0:00:28.9]} 37. Bxf6+ {[%clk 0:01:35.6]}
37... Kf8 {[%clk 0:00:28.1]} 38. Bg5+ {[%clk 0:01:34.4]} 38... Ke8 {[%clk
0:00:26.6]} 39. Bxe3 {[%clk 0:01:28.5]} 39... Rxe6 {[%clk 0:00:25.5]} 40. Qf3
{[%clk 0:01:26]} 40... Kd7 {[%clk 0:00:21]} 41. Qf7+ {[%clk 0:01:24.6]} 41...
Kd6 {[%clk 0:00:20.9]} 42. Bc5+ {[%clk 0:01:23.7]} 42... Kd5 {[%clk 0:00:19.6]}
43. Rd1+ {[%clk 0:01:23.3]} 43... Ke5 {[%clk 0:00:18.5]} 44. Re1+ {[%clk
0:01:23]} 44... Kd5 {[%clk 0:00:17.3]} 45. Qxe6# {[%clk 0:01:22.9]} 1-0

[Event "Live Chess"]
[Site "Chess.com"]
[Date "2024.06.02"]
[Round "-"]
[White "cymbalshift"]
[Black "Outspanner"]
[Result "1-0"]
[WhiteElo "1747"]
[BlackElo "1530"]
[TimeControl "300"]
[EndTime "17:00:49 PDT"]
[Termination "cymbalshift won on time"]

1. d4 {[%clk 0:04:58.2]} 1... Nf6 {[%clk 0:04:56]} 2. Nc3 {[%clk 0:04:56.6]}
2... e6 {[%clk 0:04:49.2]} 3. e4 {[%clk 0:04:55.2]} 3... Bb4 {[%clk 0:04:37]} 4.
e5 {[%clk 0:04:53.9]} 4... Nd5 {[%clk 0:04:35.2]} 5. Qg4 {[%clk 0:04:52.3]} 5...
Rg8 {[%clk 0:03:59.7]} 6. Bh6 {[%clk 0:04:38]} 6... Nxc3 {[%clk 0:03:55.1]} 7.
a3 {[%clk 0:04:36.2]} 7... Ba5 {[%clk 0:03:17.9]} 8. b4 {[%clk 0:04:21]} 8...
Bb6 {[%clk 0:03:16]} 9. Bd3 {[%clk 0:04:06.4]} 9... d6 {[%clk 0:02:36.2]} 10.
Bxh7 {[%clk 0:03:56.9]} 10... Rh8 {[%clk 0:02:35.2]} 11. Qxg7 {[%clk 0:03:53.8]}
11... Kd7 {[%clk 0:02:27.8]} 12. Qxf7+ {[%clk 0:03:10.3]} 12... Qe7 {[%clk
0:02:26.3]} 13. Qxe7+ {[%clk 0:03:08.6]} 13... Kxe7 {[%clk 0:02:25.3]} 14. Bg5+
{[%clk 0:03:07.5]} 14... Kd7 {[%clk 0:02:12.6]} 15. Bd3 {[%clk 0:03:00.2]} 15...
Bxd4 {[%clk 0:02:11.6]} 16. Nf3 {[%clk 0:02:52.9]} 16... Ne4 {[%clk 0:01:59.9]}
17. Nxd4 {[%clk 0:02:35.5]} 17... Nxg5 {[%clk 0:01:58]} 18. exd6 {[%clk
0:02:12.9]} 18... cxd6 {[%clk 0:01:56.1]} 19. O-O-O {[%clk 0:02:10.5]} 19... Nc6
{[%clk 0:01:53.7]} 20. Nxc6 {[%clk 0:02:00.2]} 20... bxc6 {[%clk 0:01:51.1]} 21.
f4 {[%clk 0:01:58.5]} 21... Nf7 {[%clk 0:01:47.2]} 22. g4 {[%clk 0:01:56.8]}
22... Bb7 {[%clk 0:01:38]} 23. g5 {[%clk 0:01:40.8]} 23... c5 {[%clk 0:01:30.9]}
24. Rhg1 {[%clk 0:01:37.5]} 24... cxb4 {[%clk 0:01:28.9]} 25. axb4 {[%clk
0:01:27.4]} 25... Rxh2 {[%clk 0:01:21]} 26. g6 {[%clk 0:01:25.2]} 26... Nh6
{[%clk 0:01:19]} 27. g7 {[%clk 0:01:17.8]} 27... Bf3 {[%clk 0:01:01.7]} 28. Rde1
{[%clk 0:01:14]} 28... Rb8 {[%clk 0:00:46.4]} 29. Rg6 {[%clk 0:01:05.5]} 29...
Bg4 {[%clk 0:00:35.8]} 30. b5 {[%clk 0:00:55.9]} 30... Bf5 {[%clk 0:00:11.9]}
31. Bxf5 {[%clk 0:00:43.9]} 31... exf5 {[%clk 0:00:11]} 32. Reg1 {[%clk
0:00:30.1]} 32... Rc8 {[%clk 0:00:09.7]} 33. R1g2 {[%clk 0:00:24.9]} 33... Rh1+
{[%clk 0:00:07.8]} 34. Kb2 {[%clk 0:00:23.5]} 1-0

[Event "Live Chess"]
[Site "Chess.com"]
[Date "2024.06.02"]
[Round "-"]
[White "Inglaterra"]
[Black "MaksymYurii"]
[Result "1-0"]
[WhiteElo "2049"]
[BlackElo "952"]
[TimeControl "300"]
[EndTime "17:00:59 PDT"]
[Termination "Inglaterra won by checkmate"]

1. e4 {[%clk 0:04:57.9]} 1... e5 {[%clk 0:04:58.7]} 2. Nf3 {[%clk 0:04:57]} 2...
Nc6 {[%clk 0:04:51.2]} 3. d4 {[%clk 0:04:55.9]} 3... f6 {[%clk 0:04:46.2]} 4.
Bc4 {[%clk 0:04:53.4]} 4... d5 {[%clk 0:04:39]} 5. exd5 {[%clk 0:04:51.1]} 5...
Na5 {[%clk 0:04:37.5]} 6. Bb5+ {[%clk 0:04:49.3]} 6... c6 {[%clk 0:04:35.6]} 7.
dxc6 {[%clk 0:04:47.9]} 7... bxc6 {[%clk 0:04:32.9]} 8. Ba4 {[%clk 0:04:35]}
8... Ba6 {[%clk 0:04:26.3]} 9. Bd2 {[%clk 0:04:06.1]} 9... Nc4 {[%clk
0:04:23.1]} 10. Bxc6+ {[%clk 0:04:02.2]} 10... Kf7 {[%clk 0:04:10.4]} 11. Bxa8
{[%clk 0:03:49.4]} 11... Nxb2 {[%clk 0:03:58.5]} 12. Qc1 {[%clk 0:03:42.6]}
12... Nc4 {[%clk 0:03:41]} 13. Be4 {[%clk 0:03:14.8]} 13... Nxd2 {[%clk
0:03:33.8]} 14. Qxd2 {[%clk 0:03:04.2]} 14... Qb8 {[%clk 0:03:27.1]} 15. Bd3
{[%clk 0:02:54.4]} 15... Bb4 {[%clk 0:03:22.1]} 16. c3 {[%clk 0:02:52.7]} 16...
Bxd3 {[%clk 0:03:02.4]} 17. Qxd3 {[%clk 0:02:52.6]} 17... Ba5 {[%clk 0:02:46]}
18. O-O {[%clk 0:02:50.2]} 18... exd4 {[%clk 0:02:42]} 19. Nxd4 {[%clk
0:02:44.8]} 19... Nh6 {[%clk 0:02:34.3]} 20. Qc4+ {[%clk 0:02:36.2]} 20... Kg6
{[%clk 0:02:32.2]} 21. Re1 {[%clk 0:02:28.5]} 21... Bc7 {[%clk 0:02:28.7]} 22.
g3 {[%clk 0:02:23.7]} 22... Ng4 {[%clk 0:02:25.6]} 23. Nc6 {[%clk 0:02:15.3]}
23... Qb6 {[%clk 0:02:08.4]} 24. Qxg4+ {[%clk 0:02:12.7]} 24... Kf7 {[%clk
0:02:02.9]} 25. Re7+ {[%clk 0:02:11.2]} 25... Kf8 {[%clk 0:01:59.5]} 26. Qxg7#
{[%clk 0:02:11.1]} 1-0